[Event "FRA-chTW Top 12 2019"]
[Site "Vandoeuvre"]
[Date "2019.05.03"]
[Round "2.2"]
[White "Bensdorp-De Labaca, Marlies"]
[Black "Safranska, Anda"]
[Result "1/2-1/2"]
[ECO "E60"]
[WhiteElo "2229"]
[BlackElo "2188"]
[Annotator "NA"]
[PlyCount "167"]
[EventDate "2019.05.02"]
[EventType "team-tourn"]
[EventCountry "FRA"]
[SourceTitle "playchess.com"]
[Source "ChessBase"]
[SourceQuality "1"]
[TimeControl "40/5400+30:1800+30"]

1. d4 {[%emt 0:00:00]} d6 {[%emt 0:00:00]} 2. Nf3 {[%emt 0:00:00]} g6 {[%emt 0:00:00]} 3. g3 {[%emt 0:00:00]} Bg7 {[%emt 0:00:05]} 4. Bg2 {[%emt 0:00:00]} Nf6 {[%emt 0:00:30]} 5. O-O {[%emt 0:00:17]} Nc6 {[%emt 0:00:32]} 6. b3 {[%emt 0:02:17]} O-O {[%emt 0:00:23]} 7. Bb2 {[%emt 0:00:20]} e5 {[%emt 0:01:25]} 8. dxe5 {[%emt 0:00:53]} Ng4 {[%emt 0:02:49]} 9. c4 {[%emt 0:01:24]} Ngxe5 {[%emt 0:06:27]} 10. Nc3 {[%emt 0:00:54]} Be6 {[%emt 0:01:26]} 11. Qd2 {[%emt 0:01:26]} h6 {[%emt 0:01:00]} 12. Rad1 {[%emt 0:00:49]} a5 {[%emt 0:04:33]} 13. Nxe5 {[%emt 0:11:06]} dxe5 {[%emt 0:00:28]} 14. Qxd8 {[%emt 0:06:12]} Rfxd8 {[%emt 0:03:16]} 15. Nb5 {[%emt 0:00:52]} Rdc8 {[%emt 0:03:54]} 16. Rd2 {[%emt 0:03:43]} a4 {[%emt 0:03:55]} 17. Bc3 {[%emt 0:06:50]} axb3 {[%emt 0:05:20]} 18. axb3 $11 {[%emt 0:00:06]} Nd8 {[%emt 0:24:25]} 19. Rfd1 {[%emt 0:00:52]} c6 {[%emt 0:00:04]} 20. Nd6 {[%emt 0:00:11]} Rcb8 {[%emt 0:00:08]} 21. Ne8 {[%emt 0:00:50]} Rc8 {[%emt 0:03:46]} 22. Nxg7 {[%emt 0:02:20]} Kxg7 {[%emt 0:00:05]} 23. Bxe5+ {[%emt 0:00:05]} f6 {[%emt 0:00:06]} 24. Bb2 {[%emt 0:01:54]} Kf7 {[%emt 0:00:14]} 25. Be4 {[%emt 0:03:43]} g5 {[%emt 0:02:45]} 26. f4 {[%emt 0:02:46]} f5 {[%emt 0:00:32]} 27. Bb1 {[%emt 0:04:23]} gxf4 {[%emt 0:03:32]} 28. gxf4 {[%emt 0:00:05]} Ke7 {[%emt 0:00:23]} 29. e4 {[%emt 0:05:10]} fxe4 {[%emt 0:00:10]} 30. Bxe4 {[%emt 0:00:04]} Nf7 {[%emt 0:02:07]} 31. f5 {[%emt 0:01:39]} Rg8+ {[%emt 0:00:07]} 32. Kh1 {[%emt 0:00:40]} Bc8 {[%emt 0:01:57]} 33. Re1 {[%emt 0:07:30]} Kf8 {[%emt 0:01:20]} 34. Bb1 {[%emt 0:05:30]} c5 {[%emt 0:07:54]} 35. Be4 {[%emt 0:01:19]} Rg4 {[%emt 0:01:51]} 36. f6 {[%emt 0:06:41]} Rf4 {[%emt 0:05:04]} 37. Bd5 {[%emt 0:01:51]} Bh3 {[%emt 0:01:10]} 38. Be6 {[%emt 0:04:40]} Bxe6 {[%emt 0:08:38]} 39. Rxe6 {[%emt 0:00:04]} Ra2 {[%emt 0:00:07]} 40. Kg2 {[%emt 0:02:07]} Ng5 {[%emt 0:00:31]} 41. Re7 {[%emt 0:32:16]} Rxf6 {[%emt 0:31:02]} 42. Rxb7 {[%emt 0:00:17]} Ne6 {[%emt 0:02:57]} 43. Bxf6 {[%emt 0:04:43]} Rxd2+ {[%emt 0:00:05]} 44. Kg3 {[%emt 0:00:36]} Kg8 {[%emt 0:01:52]} 45. h3 {[%emt 0:01:27]} Rd3+ {[%emt 0:00:48]} 46. Kg4 {[%emt 0:00:44]} Kf8 {[%emt 0:02:08]} 47. h4 {[%emt 0:00:32]} Re3 {[%emt 0:00:46]} 48. Kf5 {[%emt 0:03:58]} Nd4+ {[%emt 0:00:46]} 49. Bxd4 {[%emt 0:02:52]} cxd4 {[%emt 0:01:07]} 50. c5 {[%emt 0:01:46]} Rc3 {[%emt 0:00:30]} 51. b4 {[%emt 0:00:38]} d3 {[%emt 0:00:00]} 52. Rd7 {[%emt 0:01:06]} Rc4 {[%emt 0:00:00]} 53. h5 {[%emt 0:02:08]} Rxb4 {[%emt 0:00:00]} 54. Rxd3 {[%emt 0:00:23]} Rc4 {[%emt 0:00:00]} 55. Rd5 {[%emt 0:00:40]} Kf7 {[%emt 0:00:00]} 56. Re5 {[%emt 0:00:12]} Rc1 {[%emt 0:00:00]} 57. Ke4 {[%emt 0:00:32]} Kf6 {[%emt 0:00:00]} 58. Rd5 {[%emt 0:00:04]} Rc4+ {[%emt 0:03:14]} 59. Kd3 {[%emt 0:00:05]} Rc1 {[%emt 0:00:03]} 60. Kd4 {[%emt 0:00:46]} Rc2 {[%emt 0:00:04]} 61. Rd6+ {[%emt 0:01:56]} Kg5 {[%emt 0:00:09]} 62. Rg6+ {[%emt 0:00:30]} Kxh5 {[%emt 0:00:09]} 63. Rg8 {[%emt 0:00:05]} Kh4 {[%emt 0:00:17]} 64. Kd5 {[%emt 0:00:05]} h5 {[%emt 0:00:22]} 65. c6 {[%emt 0:00:21]} Kh3 {[%emt 0:00:05]} 66. Kd6 {[%emt 0:01:00]} Rd2+ {[%emt 0:00:53]} 67. Ke6 {[%emt 0:00:13]} Rc2 {[%emt 0:00:31]} 68. Kd7 {[%emt 0:00:13]} Rd2+ {[%emt 0:01:06]} 69. Kc8 {[%emt 0:00:31]} h4 {[%emt 0:00:05]} 70. c7 {[%emt 0:00:04]} Rc2 {[%emt 0:00:08]} 71. Kd7 {[%emt 0:00:05]} Kh2 {[%emt 0:00:13]} 72. c8=Q {[%emt 0:00:09]} Rxc8 {[%emt 0:00:04]} 73. Rxc8 {[%emt 0:00:04]} h3 {[%emt 0:00:03]} 74. Ke6 {[%emt 0:00:11]} Kg2 {[%emt 0:00:10]} 75. Rc2+ {[%emt 0:00:37]} Kg3 {[%emt 0:01:21]} 76. Kf5 {[%emt 0:01:56]} h2 {[%emt 0:00:07]} 77. Rc3+ {[%emt 0:00:16]} Kg2 {[%emt 0:01:01]} 78. Rc2+ {[%emt 0:00:14]} Kg3 {[%emt 0:00:06]} 79. Rc1 {[%emt 0:00:03]} Kg2 {[%emt 0:00:06]} 80. Kg4 {[%emt 0:00:08]} h1=Q {[%emt 0:00:18]} 81. Rc2+ {[%emt 0:00:37]} Kf1 {[%emt 0:01:02]} 82. Rc1+ {[%emt 0:00:03]} Kg2 {[%emt 0:00:04]} 83. Rxh1 {[%emt 0:00:03]} Kxh1 {[%emt 0:00:01]} 84. Kf5 {[%emt 0:05:18]} 1/2-1/2

[Event "FRA-chTW Top 12 2019"]
[Site "Vandoeuvre"]
[Date "2019.05.03"]
[Round "2.3"]
[White "Maisuradze, Nino"]
[Black "Afraoui, Anaelle"]
[Result "1-0"]
[ECO "E68"]
[WhiteElo "2179"]
[BlackElo "2068"]
[Annotator "NA"]
[PlyCount "81"]
[EventDate "2019.05.02"]
[EventType "team-tourn"]
[EventCountry "FRA"]
[SourceTitle "playchess.com"]
[Source "ChessBase"]
[SourceQuality "1"]
[TimeControl "40/5400+30:1800+30"]

1. Nf3 {[%emt 0:00:00]} Nf6 {[%emt 0:00:00]} 2. g3 {[%emt 0:00:00]} g6 {[%emt 0:00:00]} 3. Bg2 {[%emt 0:00:00]} Bg7 {[%emt 0:00:00]} 4. O-O {[%emt 0:00:00]} O-O {[%emt 0:00:00]} 5. c4 {[%emt 0:00:55]} d6 {[%emt 0:00:16]} 6. d4 {[%emt 0:02:43]} Nbd7 {[%emt 0:00:51]} 7. Nc3 {[%emt 0:00:25]} e5 {[%emt 0:00:14]} 8. e4 {[%emt 0:04:02]} exd4 {[%emt 0:00:10]} 9. Nxd4 {[%emt 0:00:01]} Re8 {[%emt 0:00:15]} 10. Re1 {[%emt 0:03:33]} a6 {[%emt 0:04:52]} 11. h3 {[%emt 0:00:41]} Rb8 {[%emt 0:00:11]} 12. Be3 {[%emt 0:05:07]} c5 {[%emt 0:01:31]} 13. Nde2 {[%emt 0:03:01]} Ne5 {[%emt 0:00:19]} 14. b3 {[%emt 0:00:38]} b5 {[%emt 0:00:25]} 15. f4 {[%emt 0:04:00]} Ned7 {[%emt 0:00:28]} 16. Qxd6 {[%emt 0:09:23]} b4 {[%emt 0:02:08]} 17. e5 {[%emt 0:04:08]} bxc3 {[%emt 0:02:02]} 18. exf6 {[%emt 0:01:59]} Rxe3 {[%emt 0:00:52]} 19. fxg7 {[%emt 0:00:49]} Rb6 {[%emt 0:00:25]} 20. Qd1 {[%emt 0:03:02]} Rbe6 {[%emt 0:03:42]} 21. Rc1 {[%emt 0:13:26]} Qe7 {[%emt 0:11:19]} 22. Kf2 {[%emt 0:05:01]} Nf6 {[%emt 0:19:11]} 23. Rxc3 {[%emt 0:04:37]} Ne4+ {[%emt 0:02:52]} 24. Bxe4 {[%emt 0:00:04]} R3xe4 {[%emt 0:00:15]} 25. Rd3 {[%emt 0:02:50]} Bb7 {[%emt 0:03:26]} 26. Qd2 {[%emt 0:18:41]} Kxg7 {[%emt 0:06:15]} 27. Qb2+ {[%emt 0:00:03]} Kg8 {[%emt 0:03:43]} 28. Rd2 {[%emt 0:01:04]} Qc7 {[%emt 0:10:56]} 29. Red1 {[%emt 0:01:14]} Qc6 {[%emt 0:03:30]} 30. Rd8+ {[%emt 0:02:00]} Re8 {[%emt 0:00:58]} 31. R1d5 {[%emt 0:01:16]} R4e7 {[%emt 0:12:07]} 32. Rxe8+ {[%emt 0:10:09]} Rxe8 {[%emt 0:00:29]} 33. Qd2 {[%emt 0:00:20]} Qc8 {[%emt 0:02:01]} 34. Re5 {[%emt 0:01:00]} Rd8 {[%emt 0:07:23]} 35. Qa5 {[%emt 0:00:24]} Rd3 {[%emt 0:01:09]} 36. Qxc5 {[%emt 0:00:17]} Qd7 {[%emt 0:01:54]} 37. Re7 {[%emt 0:00:17]} Rf3+ {[%emt 0:01:33]} 38. Ke1 {[%emt 0:00:01]} Qd3 {[%emt 0:00:41]} 39. Re8+ {[%emt 0:00:28]} Kg7 {[%emt 0:00:03]} 40. Qf8+ {[%emt 0:00:10]} Kf6 {[%emt 0:00:27]} 41. Qh8+ {[%emt 0:30:09]} 1-0

[Event "FRA-chTW Top 12 2019"]
[Site "Vandoeuvre"]
[Date "2019.05.03"]
[Round "2.3"]
[White "Franc, Nathalie"]
[Black "Verot, Melanie"]
[Result "1/2-1/2"]
[ECO "B28"]
[WhiteElo "2004"]
[BlackElo "2069"]
[Annotator "NA"]
[PlyCount "79"]
[EventDate "2019.05.02"]
[EventType "team-tourn"]
[EventCountry "FRA"]
[SourceTitle "playchess.com"]
[Source "ChessBase"]
[SourceQuality "1"]
[TimeControl "40/5400+30:1800+30"]

1. e4 {[%emt 0:00:00]} c5 {[%emt 0:00:00]} 2. Nf3 {[%emt 0:00:00]} a6 {[%emt 0:00:00]} 3. d4 {[%emt 0:00:30]} cxd4 {[%emt 0:00:15]} 4. Nxd4 {[%emt 0:00:08]} Nf6 {[%emt 0:00:11]} 5. Nc3 {[%emt 0:01:27]} e5 {[%emt 0:00:48]} 6. Nf3 {[%emt 0:01:56]} Nc6 {[%emt 0:00:21]} 7. Bd3 {[%emt 0:03:26]} Bb4 {[%emt 0:09:32]} 8. O-O {[%emt 0:02:02]} h6 {[%emt 0:06:22]} 9. a3 {[%emt 0:07:23]} Bc5 {[%emt 0:03:59]} 10. Bc4 {[%emt 0:18:42]} O-O {[%emt 0:08:21]} 11. Qd3 {[%emt 0:04:55]} d6 {[%emt 0:06:40]} 12. Ne2 {[%emt 0:13:28]} b5 {[%emt 0:13:09]} 13. Ba2 {[%emt 0:01:26]} Qb6 {[%emt 0:08:21]} 14. b4 {[%emt 0:03:24]} Bxf2+ {[%emt 0:02:43]} 15. Kh1 {[%emt 0:09:49]} Bb7 {[%emt 0:16:30]} 16. Rxf2 {[%emt 0:01:39]} Nxe4 {[%emt 0:03:57]} 17. Rf1 {[%emt 0:03:46]} Ne7 {[%emt 0:01:28]} 18. Be3 {[%emt 0:02:17]} Qc7 {[%emt 0:01:32]} 19. Nd2 {[%emt 0:03:14]} Nf6 {[%emt 0:02:48]} 20. Rxf6 {[%emt 0:04:41]} gxf6 {[%emt 0:04:30]} 21. Bxh6 {[%emt 0:00:28]} d5 {[%emt 0:00:17]} 22. Bxf8 {[%emt 0:02:25]} Kxf8 {[%emt 0:00:05]} 23. Ng3 {[%emt 0:01:24]} Ng6 {[%emt 0:02:11]} 24. Nh5 {[%emt 0:01:00]} Ke7 {[%emt 0:00:18]} 25. Rf1 {[%emt 0:01:23]} Rh8 {[%emt 0:02:11]} 26. Qf5 {[%emt 0:00:54]} Qd6 {[%emt 0:00:33]} 27. Qxf6+ {[%emt 0:01:47]} Qxf6 {[%emt 0:00:04]} 28. Nxf6 {[%emt 0:00:04]} Nf4 {[%emt 0:00:21]} 29. Ng4 {[%emt 0:06:45]} d4 {[%emt 0:00:35]} 30. Nf3 {[%emt 0:00:47]} f6 {[%emt 0:02:45]} 31. Re1 {[%emt 0:01:33]} Rg8 {[%emt 0:00:56]} 32. h3 {[%emt 0:00:47]} Rc8 {[%emt 0:00:35]} 33. Bb3 {[%emt 0:01:22]} Rc3 {[%emt 0:00:52]} 34. Nxd4 {[%emt 0:01:16]} Nxg2 {[%emt 0:00:41]} 35. Nf5+ {[%emt 0:00:22]} Kf8 {[%emt 0:00:13]} 36. Nd6 {[%emt 0:00:51]} Ba8 {[%emt 0:02:18]} 37. Rf1 {[%emt 0:00:38]} Ne3+ {[%emt 0:00:14]} 38. Kg1 {[%emt 0:00:04]} Nxf1 {[%emt 0:00:09]} 39. Kxf1 {[%emt 0:00:02]} Rxh3 {[%emt 0:00:27]} 40. Ke1 {[%emt 0:01:19]} 1/2-1/2

[Event "FRA-chTW Top 12 2019"]
[Site "Vandoeuvre"]
[Date "2019.05.03"]
[Round "2.4"]
[White "Bonvalot, Isabelle"]
[Black "Fischer, Julie"]
[Result "1/2-1/2"]
[ECO "B22"]
[WhiteElo "1936"]
[BlackElo "2046"]
[Annotator "NA"]
[PlyCount "141"]
[EventDate "2019.05.02"]
[EventType "team-tourn"]
[EventCountry "FRA"]
[SourceTitle "playchess.com"]
[Source "ChessBase"]
[SourceQuality "1"]
[TimeControl "40/5400+30:1800+30"]

1. e4 {[%emt 0:00:00]} c5 {[%emt 0:00:00]} 2. c3 {[%emt 0:00:00]} d5 {[%emt 0:00:00]} 3. exd5 {[%emt 0:00:00]} Qxd5 {[%emt 0:00:00]} 4. d4 {[%emt 0:00:00]} Nf6 {[%emt 0:00:00]} 5. Nf3 {[%emt 0:00:02]} e6 {[%emt 0:00:03]} 6. Be3 {[%emt 0:04:03]} cxd4 {[%emt 0:02:16]} 7. cxd4 {[%emt 0:00:20]} Nc6 {[%emt 0:00:59]} 8. Nc3 {[%emt 0:00:30]} Qd8 {[%emt 0:00:27]} 9. a3 {[%emt 0:01:13]} Be7 {[%emt 0:00:33]} 10. Be2 {[%emt 0:00:17]} Nd5 {[%emt 0:04:03]} 11. Nxd5 {[%emt 0:00:27]} Qxd5 {[%emt 0:00:08]} 12. O-O {[%emt 0:00:05]} O-O {[%emt 0:00:26]} 13. Rc1 {[%emt 0:01:40]} b5 {[%emt 0:08:43]} 14. Qd3 {[%emt 0:05:07]} Rb8 {[%emt 0:09:26]} 15. Nd2 {[%emt 0:01:03]} Rd8 {[%emt 0:06:30]} 16. Bf3 {[%emt 0:01:15]} Ne5 {[%emt 0:02:22]} 17. Qxh7+ {[%emt 0:03:30]} Kxh7 {[%emt 0:00:16]} 18. Bxd5 {[%emt 0:00:02]} Ng4 {[%emt 0:14:02]} 19. Be4+ {[%emt 0:03:13]} f5 {[%emt 0:03:06]} 20. Bf3 {[%emt 0:02:48]} Nxe3 {[%emt 0:03:14]} 21. fxe3 {[%emt 0:00:02]} e5 {[%emt 0:01:30]} 22. Nb3 {[%emt 0:03:13]} b4 {[%emt 0:06:22]} 23. a4 {[%emt 0:06:18]} Bg5 {[%emt 0:01:20]} 24. Kf2 {[%emt 0:03:52]} exd4 {[%emt 0:08:15]} 25. Nxd4 {[%emt 0:00:29]} f4 {[%emt 0:01:06]} 26. Nc6 {[%emt 0:08:20]} fxe3+ {[%emt 0:00:15]} 27. Kg3 {[%emt 0:00:52]} e2 {[%emt 0:11:25]} 28. Bxe2 {[%emt 0:00:56]} Bxc1 {[%emt 0:00:16]} 29. Rxc1 {[%emt 0:03:49]} Bf5 {[%emt 0:04:32]} 30. Nxb8 {[%emt 0:00:55]} Rxb8 {[%emt 0:00:16]} 31. Rc7 {[%emt 0:02:30]} Rd8 {[%emt 0:01:32]} 32. Rxa7 {[%emt 0:12:35]} Rd2 {[%emt 0:00:07]} 33. Bf3 {[%emt 0:00:45]} Rxb2 {[%emt 0:00:07]} 34. Rb7 {[%emt 0:00:26]} b3 {[%emt 0:00:46]} 35. Kf4 {[%emt 0:01:46]} Bc2 {[%emt 0:03:54]} 36. Bd5 {[%emt 0:05:05]} Ra2 {[%emt 0:07:32]} 37. Bxb3 {[%emt 0:02:33]} Bxb3 {[%emt 0:00:06]} 38. Rxb3 {[%emt 0:00:09]} Rxa4+ {[%emt 0:00:04]} 39. Kg5 {[%emt 0:00:44]} Ra5+ {[%emt 0:00:08]} 40. Kh4 {[%emt 0:00:09]} Ra2 {[%emt 0:00:54]} 41. Kg3 {[%emt 0:32:49]} Kg6 {[%emt 0:31:09]} 42. Rb6+ {[%emt 0:00:53]} Kh5 {[%emt 0:00:51]} 43. h3 {[%emt 0:02:52]} Ra3+ {[%emt 0:00:22]} 44. Kh2 {[%emt 0:02:13]} Ra2 {[%emt 0:00:04]} 45. Rb4 {[%emt 0:00:36]} Kg5 {[%emt 0:01:32]} 46. Rg4+ {[%emt 0:00:35]} Kh6 {[%emt 0:00:04]} 47. Kg3 {[%emt 0:00:21]} Ra3+ {[%emt 0:00:07]} 48. Kf4 {[%emt 0:00:34]} Ra4+ {[%emt 0:00:04]} 49. Ke5 {[%emt 0:00:26]} Ra5+ {[%emt 0:00:03]} 50. Kf4 {[%emt 0:01:20]} Ra4+ {[%emt 0:00:05]} 51. Kg3 {[%emt 0:00:17]} Ra3+ {[%emt 0:00:04]} 52. Kh2 {[%emt 0:01:28]} Ra2 {[%emt 0:00:04]} 53. h4 {[%emt 0:00:42]} Ra7 {[%emt 0:01:03]} 54. Kh3 {[%emt 0:00:23]} Ra3+ {[%emt 0:00:37]} 55. g3 {[%emt 0:00:10]} Ra5 {[%emt 0:00:30]} 56. Rb4 {[%emt 0:00:43]} Ra7 {[%emt 0:00:39]} 57. Rb6+ {[%emt 0:00:37]} g6 {[%emt 0:01:21]} 58. Re6 {[%emt 0:01:41]} Ra3 {[%emt 0:00:44]} 59. Kg4 {[%emt 0:01:32]} Ra4+ {[%emt 0:00:03]} 60. Kf3 {[%emt 0:00:11]} Ra3+ {[%emt 0:00:05]} 61. Kf4 {[%emt 0:00:03]} Ra4+ {[%emt 0:00:08]} 62. Re4 {[%emt 0:00:06]} Rxe4+ {[%emt 0:01:56]} 63. Kxe4 {[%emt 0:00:03]} g5 {[%emt 0:00:04]} 64. h5 {[%emt 0:02:53]} Kxh5 {[%emt 0:00:18]} 65. Kf5 {[%emt 0:00:11]} g4 {[%emt 0:00:42]} 66. Kf4 {[%emt 0:00:10]} Kh6 {[%emt 0:00:04]} 67. Kxg4 {[%emt 0:00:12]} Kg6 {[%emt 0:00:03]} 68. Kf4 {[%emt 0:00:06]} Kf6 {[%emt 0:00:06]} 69. g4 {[%emt 0:00:19]} Kg6 {[%emt 0:00:09]} 70. g5 {[%emt 0:00:16]} Kg7 {[%emt 0:00:05]} 71. Ke4 {[%emt 0:19:45]} 1/2-1/2

[Event "FRA-chTW Top 12 2019"]
[Site "Vandoeuvre"]
[Date "2019.05.03"]
[Round "2.4"]
[White "Gras, Delphine"]
[Black "Bauer, Alexandra"]
[Result "1-0"]
[ECO "B44"]
[WhiteElo "1835"]
[BlackElo "1349"]
[Annotator "NA"]
[PlyCount "91"]
[EventDate "2019.05.02"]
[EventType "team-tourn"]
[EventCountry "FRA"]
[SourceTitle "playchess.com"]
[Source "ChessBase"]
[SourceQuality "1"]
[TimeControl "40/5400+30:1800+30"]

1. e4 {[%emt 0:00:00]} c5 {[%emt 0:00:00]} 2. Nf3 {[%emt 0:00:00]} Nc6 {[%emt 0:00:02]} 3. d4 {[%emt 0:00:00]} cxd4 {[%emt 0:00:10]} 4. Nxd4 {[%emt 0:00:00]} e6 {[%emt 0:00:56]} 5. Be3 {[%emt 0:03:20]} Nf6 {[%emt 0:01:56]} 6. Nd2 {[%emt 0:02:10]} a6 {[%emt 0:06:50]} 7. a4 {[%emt 0:02:28]} Be7 {[%emt 0:07:26]} 8. Be2 {[%emt 0:00:45]} O-O {[%emt 0:04:21]} 9. O-O {[%emt 0:00:17]} Qc7 {[%emt 0:09:50]} 10. c3 {[%emt 0:12:03]} d5 {[%emt 0:05:58]} 11. Nxc6 {[%emt 0:21:04]} bxc6 {[%emt 0:01:33]} 12. exd5 {[%emt 0:04:05]} cxd5 {[%emt 0:01:33]} 13. Rc1 {[%emt 0:04:40]} a5 {[%emt 0:13:08]} 14. b4 {[%emt 0:05:39]} Bd7 {[%emt 0:03:39]} 15. Qb3 {[%emt 0:06:32]} Rfb8 {[%emt 0:09:52]} 16. b5 {[%emt 0:01:54]} Bc5 {[%emt 0:03:11]} 17. Bg5 {[%emt 0:03:45]} Qe5 {[%emt 0:04:31]} 18. Bxf6 {[%emt 0:00:09]} Qxe2 {[%emt 0:12:24]} 19. Bg5 {[%emt 0:00:14]} h6 {[%emt 0:02:33]} 20. Bf4 {[%emt 0:00:05]} Rb6 {[%emt 0:00:08]} 21. Rc2 {[%emt 0:05:02]} Qg4 {[%emt 0:01:56]} 22. Bg3 {[%emt 0:00:50]} Rc8 {[%emt 0:01:28]} 23. c4 {[%emt 0:00:33]} Qf5 {[%emt 0:02:36]} 24. Nf3 {[%emt 0:01:37]} dxc4 {[%emt 0:02:53]} 25. Rxc4 {[%emt 0:00:15]} Bc6 {[%emt 0:00:49]} 26. Qc3 {[%emt 0:08:31]} Be4 {[%emt 0:01:50]} 27. Rc1 {[%emt 0:01:46]} Bxf2+ {[%emt 0:01:25]} 28. Bxf2 {[%emt 0:01:46]} Rxc4 {[%emt 0:00:22]} 29. Qxc4 {[%emt 0:00:02]} Rb7 {[%emt 0:00:18]} 30. Nh4 {[%emt 0:02:05]} Qd5 {[%emt 0:00:47]} 31. Qc3 {[%emt 0:02:14]} Qd8 {[%emt 0:00:30]} 32. b6 {[%emt 0:01:19]} Qd5 {[%emt 0:00:32]} 33. Bd4 {[%emt 0:01:15]} Qg5 {[%emt 0:00:25]} 34. Bf2 {[%emt 0:02:13]} Bd5 {[%emt 0:00:19]} 35. Qb2 {[%emt 0:01:35]} Qf4 {[%emt 0:00:38]} 36. Rc8+ {[%emt 0:01:06]} Kh7 {[%emt 0:00:04]} 37. Qc3 {[%emt 0:01:34]} Qxa4 {[%emt 0:00:47]} 38. h3 {[%emt 0:02:21]} Qe4 {[%emt 0:00:46]} 39. Qxa5 {[%emt 0:00:49]} g5 {[%emt 0:00:32]} 40. Nf3 {[%emt 0:01:38]} Qf5 {[%emt 0:00:18]} 41. Rc7 {[%emt 0:31:25]} Qb1+ {[%emt 0:30:16]} 42. Kh2 {[%emt 0:00:15]} Qb2 {[%emt 0:00:15]} 43. Rxb7 {[%emt 0:00:54]} Bxb7 {[%emt 0:00:08]} 44. Qa7 {[%emt 0:00:28]} Qxf2 {[%emt 0:01:04]} 45. Qxb7 {[%emt 0:00:02]} Kg7 {[%emt 0:01:31]} 46. Qc7 {[%emt 0:00:10]} 1-0

[Event "FRA-chTW Top 12 2019"]
[Site "Vandoeuvre"]
[Date "2019.05.03"]
[Round "2.5"]
[White "Savina, Anastasia"]
[Black "Shvayger, Yuliya"]
[Result "1/2-1/2"]
[ECO "D35"]
[WhiteElo "2353"]
[BlackElo "2373"]
[Annotator "NA"]
[PlyCount "57"]
[EventDate "2019.05.02"]
[EventType "team-tourn"]
[EventCountry "FRA"]
[SourceTitle "playchess.com"]
[Source "ChessBase"]
[SourceQuality "1"]
[TimeControl "40/5400+30:1800+30"]

1. d4 {[%emt 0:00:25]} Nf6 {[%emt 0:00:00]} 2. c4 {[%emt 0:00:32]} e6 {[%emt 0:00:00]} 3. Nf3 {[%emt 0:01:28]} d5 {[%emt 0:00:26]} 4. Nc3 {[%emt 0:00:19]} Nbd7 {[%emt 0:01:38]} 5. cxd5 {[%emt 0:05:06]} exd5 {[%emt 0:00:08]} 6. Bf4 {[%emt 0:00:33]} c6 {[%emt 0:01:09]} 7. e3 {[%emt 0:03:41]} Nh5 {[%emt 0:04:06]} 8. Bd3 {[%emt 0:12:30]} Nxf4 {[%emt 0:01:19]} 9. exf4 {[%emt 0:00:05]} Bd6 {[%emt 0:00:06]} 10. Ne5 {[%emt 0:00:51]} Qe7 {[%emt 0:15:09]} 11. O-O {[%emt 0:15:06]} O-O {[%emt 0:00:19]} 12. Re1 {[%emt 0:04:20]} Qf6 {[%emt 0:00:19]} 13. Qf3 {[%emt 0:10:52]} Qh6 {[%emt 0:11:34]} 14. h3 {[%emt 0:13:54]} f6 {[%emt 0:03:59]} 15. Nxd7 {[%emt 0:05:35]} Bxd7 {[%emt 0:00:03]} 16. Nxd5 $11 {[%emt 0:00:40]} Kh8 {[%emt 0:01:35]} 17. Nc3 {[%emt 0:20:04]} Qxf4 {[%emt 0:02:08]} 18. Qxf4 {[%emt 0:01:17]} Bxf4 {[%emt 0:00:02]} 19. d5 {[%emt 0:01:39]} Be5 {[%emt 0:05:36]} 20. dxc6 {[%emt 0:00:26]} Bxc6 {[%emt 0:00:05]} 21. Be4 {[%emt 0:00:30]} Rac8 {[%emt 0:02:49]} 22. Rad1 {[%emt 0:00:31]} Bxc3 {[%emt 0:16:35]} 23. bxc3 {[%emt 0:00:03]} Bxe4 {[%emt 0:00:07]} 24. Rxe4 {[%emt 0:00:05]} Rxc3 {[%emt 0:00:04]} 25. Re7 {[%emt 0:01:20]} Ra3 {[%emt 0:00:46]} 26. Rxb7 {[%emt 0:00:25]} Rxa2 {[%emt 0:00:07]} 27. Rdd7 {[%emt 0:00:09]} Rg8 {[%emt 0:00:10]} 28. Rxa7 {[%emt 0:00:06]} Rxa7 {[%emt 0:00:06]} 29. Rxa7 {[%emt 0:00:02]} 1/2-1/2

[Event "FRA-chTW Top 12 2019"]
[Site "Vandoeuvre"]
[Date "2019.05.03"]
[Round "2.6"]
[White "Le Du, Maelle"]
[Black "Bismuth, Lea"]
[Result "0-1"]
[ECO "A46"]
[WhiteElo "1673"]
[BlackElo "1956"]
[Annotator "NA"]
[PlyCount "90"]
[EventDate "2019.05.02"]
[EventType "team-tourn"]
[EventCountry "FRA"]
[SourceTitle "playchess.com"]
[Source "ChessBase"]
[SourceQuality "1"]
[TimeControl "40/5400+30:1800+30"]

1. d4 {[%emt 0:00:00]} Nf6 {[%emt 0:00:00]} 2. Nf3 {[%emt 0:00:00]} g6 {[%emt 0:00:00]} 3. e3 {[%emt 0:00:07]} Bg7 {[%emt 0:00:00]} 4. Bd3 {[%emt 0:00:38]} c5 {[%emt 0:01:36]} 5. O-O {[%emt 0:01:40]} cxd4 {[%emt 0:00:34]} 6. exd4 {[%emt 0:02:08]} O-O {[%emt 0:01:51]} 7. c3 {[%emt 0:10:28]} Nc6 {[%emt 0:01:01]} 8. Bg5 {[%emt 0:03:37]} d6 {[%emt 0:02:37]} 9. Re1 {[%emt 0:15:29]} Re8 {[%emt 0:00:46]} 10. Nbd2 {[%emt 0:04:00]} Qc7 {[%emt 0:04:33]} 11. Re2 {[%emt 0:10:33]} Bd7 {[%emt 0:11:49]} 12. Qc2 {[%emt 0:07:49]} Rac8 {[%emt 0:02:45]} 13. Rae1 {[%emt 0:03:17]} Kf8 {[%emt 0:10:36]} 14. a3 {[%emt 0:09:49]} e5 {[%emt 0:01:37]} 15. dxe5 {[%emt 0:01:05]} dxe5 {[%emt 0:00:16]} 16. h3 {[%emt 0:08:00]} Nd5 {[%emt 0:05:07]} 17. g4 {[%emt 0:14:58]} f6 {[%emt 0:01:41]} 18. Be3 {[%emt 0:01:15]} Nce7 {[%emt 0:08:16]} 19. Nh4 {[%emt 0:02:26]} Nxe3 {[%emt 0:01:49]} 20. Rxe3 {[%emt 0:00:23]} Nd5 {[%emt 0:00:40]} 21. Re4 {[%emt 0:01:16]} Nf4 {[%emt 0:04:01]} 22. R1e3 {[%emt 0:00:32]} Bc6 {[%emt 0:02:31]} 23. Rc4 {[%emt 0:00:24]} Qd6 {[%emt 0:12:09]} 24. Ne4 {[%emt 0:01:19]} Qe7 {[%emt 0:02:27]} 25. Ng2 {[%emt 0:00:39]} b5 {[%emt 0:01:29]} 26. Rc5 {[%emt 0:00:31]} Nxg2 {[%emt 0:00:56]} 27. Kxg2 {[%emt 0:00:23]} Bxe4+ {[%emt 0:00:11]} 28. Rxe4 {[%emt 0:00:17]} Qxc5 {[%emt 0:00:43]} 29. Qe2 {[%emt 0:00:25]} a6 {[%emt 0:01:32]} 30. c4 {[%emt 0:00:25]} bxc4 {[%emt 0:03:43]} 31. Bxc4 {[%emt 0:00:28]} a5 {[%emt 0:01:36]} 32. Kg3 {[%emt 0:01:04]} Red8 {[%emt 0:01:52]} 33. b4 {[%emt 0:00:33]} axb4 {[%emt 0:00:21]} 34. axb4 {[%emt 0:00:05]} Qxb4 {[%emt 0:01:45]} 35. Be6 {[%emt 0:00:46]} Rc3+ {[%emt 0:01:25]} 36. f3 {[%emt 0:00:13]} Qa3 {[%emt 0:00:50]} 37. Bc4 {[%emt 0:00:44]} Qc1 {[%emt 0:02:08]} 38. Kh4 {[%emt 0:00:38]} f5 {[%emt 0:01:49]} 39. gxf5 {[%emt 0:00:33]} gxf5 {[%emt 0:00:07]} 40. Qa2 {[%emt 0:00:23]} fxe4 {[%emt 0:01:39]} 41. Bg8 {[%emt 0:30:18]} Qf4+ {[%emt 0:31:19]} 42. Kh5 {[%emt 0:00:13]} Qf5+ {[%emt 0:01:38]} 43. Kh4 {[%emt 0:00:14]} Rxf3 {[%emt 0:00:16]} 44. Qf7+ {[%emt 0:00:46]} Qxf7 {[%emt 0:00:09]} 45. Bxf7 {[%emt 0:00:04]} Kxf7 {[%emt 0:00:24]} 0-1